[Event "Budapest One Week IM-B 03-2025"]
[Site "Budapest"]
[Date "2025.03.21"]
[Round "7.3"]
[White "Jing, Andrew"]
[Black "Mrithyunjay Mahadevan"]
[Result "1/2-1/2"]
[Annotator "TA"]
[ECO "A40"]
[WhiteElo "2198"]
[BlackElo "2295"]
[PlyCount "87"]
[EventDate "2025.03.17"]
[EventType "tourn"]
[EventCountry "HUN"]
[SourceTitle "playchess.com"]
[Source "ChessBase"]
[SourceQuality "1"]
[TimeControl "5400+30"]

{[%evp 9,87,26,47,41,53,48,65,52,85,86,85,76,89,68,81,64,93,29,84,40,43,41,43,32,36,38,46,43,50,50,93,93,93,68,98,69,127,12,0,0,0,0,25,-26,18,17,17,14,55,64,72,72,72,6,8,0,0,0,0,0,0,0,0,-42,-29,-40,-29,-70,-67,-54,0,0,0,0,0,0,0,0,0,0]} 1. d4 {[%emt 0:10:02][%cal Bd2d4,Bd4d5][%mdl 32]} e6 {[%emt 0:00:22]} 2. c4 {[%emt 0:00:19]} b6 {[%emt 0:00:25]} 3. e4 {[%emt 0:00:45]} Bb7 {[%emt 0:00:06]} 4. Nc3 {[%emt 0:00:04]} Bb4 {[%emt 0:00:47]} 5. f3 {[%emt 0:00:07]} c5 {[%emt 0:05:26]} 6. d5 {[%emt 0:02:11] A40: Unusual replies to 1 d4.} Bxc3+ {[%emt 0:00:33]} 7. bxc3 {[%emt 0:00:05]} d6 {[%emt 0:00:17]} 8. Be3 $146 {[%emt 0:03:58] White is slightly better.} (8. Ne2 e5 9. h4 h5 10. Bg5 f6 11. Be3 Nh6 12. Qd2 Bc8 13. Ng3 Nf7 14. Nf5 {½-½ Novotna,T (1566)-Kuhnmund,I (1709) Ricany op 2016 (9)}) 8... e5 {[%emt 0:01:07]} 9. Bd3 {[%emt 0:03:58]} Ne7 {[%emt 0:00:34][%cal Bg8e7,Be7g6,Bg6h4][%mdl 32]} 10. Ne2 {[%emt 0:00:52]} O-O {[%emt 0:00:35]} 11. g4 {[%emt 0:06:20]} Ng6 {[%emt 0:00:39]} 12. Qd2 {[%emt 0:01:28][%cal Oh2h4]} Nh4 {[%emt 0:02:20] [#]} 13. Ng1 {[%emt 0:09:15]} (13. O-O $1 $16 {Bg5 would now be deadly.} f6 14. Ng3) 13... f6 {[%emt 0:01:44] Dodges Bg5} (13... Nd7 $11 {keeps the balance.}) 14. Bf2 {[%emt 0:05:08]} Ng2+ {[%emt 0:00:24]} 15. Kf1 {[%emt 0:00:06]} Nf4 {[%emt 0:00:05]} 16. Ne2 {[%emt 0:00:35]} Nxd3 {[%emt 0:01:19]} 17. Qxd3 {[%emt 0:00:10]} Qe8 {[%emt 0:00:22]} 18. a4 {[%emt 0:00:28]} Nd7 {[%emt 0:00:49]} 19. Ng3 {[%emt 0:00:27]} g6 {[%emt 0:00:31]} 20. h4 {[%emt 0:00:48]} Kf7 {[%emt 0:03:24]} 21. Be3 {[%emt 0:03:02]} Ke7 {[%emt 0:01:29]} 22. h5 {[%emt 0:00:19]} (22. a5 {with more complications.} bxa5 23. Bh6 Rg8 24. Rxa5 Qd8 25. Ra2) 22... Kd8 {[%emt 0:00:58]} (22... a5 $14) 23. hxg6 {[%emt 0:00:29] White is more active.} (23. a5 $16) 23... hxg6 $11 {[%emt 0:00:12]} 24. Rh7 {[%emt 0:03:08]} Rf7 {[%emt 0:00:58]} 25. Rh6 {[%emt 0:00:18]} Nf8 {[%emt 0:00:18]} 26. Kf2 {[%emt 0:02:43]} ({Better is} 26. Qb1) 26... Kc7 {[%emt 0:01:12]} 27. a5 {[%emt 0:03:36]} Ba6 {[%emt 0:01:11][%cal Bb7a6,Ba6b5,Bb5d3][%mdl 32]} 28. Rhh1 {[%emt 0:01:21]} b5 {[%emt 0:05:43]} 29. cxb5 $1 {[%emt 0:03:19]} Qxb5 {[%emt 0:00:08]} 30. Qxb5 {[%emt 0:01:11]} Bxb5 {[%emt 0:00:43]} 31. Rab1 {[%emt 0:00:15]} (31. Rh8 $16) 31... Bd3 {[%emt 0:00:41]} 32. Rb2 {[%emt 0:00:41]} Rh7 {[%emt 0:00:48]} 33. Rxh7+ {[%emt 0:00:19]} Nxh7 {[%emt 0:00:04]} 34. Bd2 {[%emt 0:07:02]} Rb8 {[%emt 0:02:05]} 35. Rxb8 {[%emt 0:00:05]} Kxb8 {[%emt 0:00:04][%mdl 4096] Endgame KBN-KBN} 36. Nf1 {[%emt 0:00:04]} Kb7 {[%emt 0:03:00]} 37. Ne3 $1 {[%emt 0:00:06]} Ka6 {[%emt 0:00:08]} 38. c4 {[%emt 0:00:04]} Ng5 {[%emt 0:00:20]} 39. Be1 {[%emt 0:03:10]} Nf7 {[%emt 0:01:58]} (39... Nh3+ $15 40. Kg3 Ng1) 40. Bc3 {[%emt 0:00:35] The position is equal.} Nd8 {[%emt 0:00:41]} 41. Ke1 {[%emt 0:00:06]} Nb7 {[%emt 0:02:31]} 42. Kd2 {[%emt 0:00:06]} Bb1 {[%emt 0:00:08]} 43. Kc1 {[%emt 0:00:02]} Bd3 {[%emt 0:00:07]} 44. Kd2 {[%emt 0:00:04] Repels Be2.   Weighted Error Value: White=0.18 (very precise) /Black=0.18 (very precise)   Mistake:       	White=4     	Black=3      Inaccurate:     	White=3     	Black=6      OK:         	White=13    	Black=11     Best:        	---       	Black=2      Strong:       	White=2     	---} 1/2-1/2

[Event "Budapest One Week IM-B 03-2025"]
[Site "Budapest"]
[Date "2025.03.21"]
[Round "7.4"]
[White "Turcsanyi, Vince Gergo"]
[Black "Ongut, Tamas Gunes"]
[Result "1/2-1/2"]
[Annotator "TA"]
[ECO "A04"]
[WhiteElo "2285"]
[BlackElo "2290"]
[PlyCount "87"]
[EventDate "2025.03.17"]
[EventType "tourn"]
[EventCountry "HUN"]
[SourceTitle "playchess.com"]
[Source "ChessBase"]
[SourceQuality "1"]
[TimeControl "5400+30"]

{[%evp 12,87,59,36,68,65,65,29,37,25,23,22,23,26,30,19,33,21,25,-7,12,0,0,-92,-93,-82,-98,-73,-77,-105,-32,-44,-41,-45,-30,-16,-7,-62,-63,-79,-77,-81,-63,-78,-78,-80,-76,-77,-59,-52,-12,-8,-8,-8,-8,-8,-8,-8,-8,-8,-8,-8,-8,-8,-8,-8,-8,-8,-8,-8,-8,-8,-8,-8,-8,-8,-8,-8]} 1. Nf3 {[%emt 0:00:04]} d6 {[%emt 0:19:13]} 2. d4 {[%emt 0:07:40]} Nf6 {[%emt 0:00:10]} 3. c4 {[%emt 0:03:27]} g6 {[%emt 0:00:11]} 4. Nc3 {[%emt 0:00:14]} Bg7 {[%emt 0:00:09]} 5. e4 {[%emt 0:00:13]} Bg4 {[%emt 0:00:10]} 6. Be2 {[%emt 0:01:58]} Bxf3 $1 {[%emt 0:00:12][%mdl 4] is more profitable than 6...0-0 at the moment.} 7. Bxf3 {[%emt 0:03:09] [#] e5 is the strong threat.} e5 {[%emt 0:00:08] E90: King's Indian: Classical: Early deviations and 6 h3.} 8. d5 {[%emt 0:06:07]} h5 {[%emt 0:00:10]} 9. Bg5 {[%emt 0:07:25]} Bh6 {[%emt 0:00:16] White has an edge.} 10. Qd2 $146 {[%emt 0:02:57]} (10. Bxh6 Rxh6 11. Qd2 Rh8 12. O-O-O a5 13. h3 Na6 14. g4 Qe7 15. g5 Nd7 16. Nb5 {0-1 Gordon,F (2354)-Baltic,F (2255) Titled Tuesday intern op 16th Jul Late blitz 2024 (5)}) 10... Bxg5 {[%emt 0:00:08]} 11. Qxg5 {[%emt 0:00:06]} Nbd7 {[%emt 0:06:13]} 12. O-O {[%emt 0:02:44]} a5 {[%emt 0:01:10]} 13. b3 {[%emt 0:05:15]} Kf8 {[%emt 0:01:47]} 14. a3 {[%emt 0:03:05]} Kg7 {[%emt 0:03:47]} 15. b4 {[%emt 0:05:12]} Qb8 {[%emt 0:10:05]} (15... c6 {looks sharper.} 16. dxc6 axb4 17. cxb7 Rxa3 18. Nb5 Rxa1 19. Rxa1 Qb6) 16. Qe3 {[%emt 0:14:31]} Rc8 {[%emt 0:04:40]} 17. c5 {[%emt 0:08:15]} (17. Be2 $11) 17... axb4 $17 {[%emt 0:01:11]} 18. axb4 {[%emt 0:01:14]} Rxa1 {[%emt 0:00:07]} 19. Rxa1 {[%emt 0:00:06] [#]} c6 $1 {[%emt 0:00:08]} 20. Na4 {[%emt 0:02:54]} Qa7 {[%emt 0:04:10]} ({Black should play} 20... cxd5 $17 {White must now prevent ...d4.} 21. exd5 e4) 21. cxd6 {[%emt 0:05:05]} Qxe3 {[%emt 0:01:11]} 22. fxe3 {[%emt 0:00:15]} cxd5 {[%emt 0:01:36]} (22... Ra8 $5 23. dxc6 bxc6 $11) 23. exd5 {[%emt 0:04:10]} Ra8 {[%emt 0:01:38]} 24. Ra2 {[%emt 0:06:13]} (24. Be2 $1 $11) 24... Ne8 {[%emt 0:07:46]} 25. Nc3 $1 {[%emt 0:05:49]} Rxa2 {[%emt 0:00:09]} 26. Nxa2 {[%emt 0:00:02]} Nxd6 {[%emt 0:00:12][%mdl 4096] Endgame KBN-KNN} 27. Nc3 {[%emt 0:00:31]} f5 {[%emt 0:02:51]} 28. e4 {[%emt 0:00:24]} h4 {[%emt 0:02:54]} 29. Kf2 {[%emt 0:04:40]} Nf6 {[%emt 0:00:50][%cal Rf5e4]} 30. Ke3 {[%emt 0:00:08]} fxe4 {[%emt 0:01:02]} 31. Nxe4 {[%emt 0:01:10] The position is equal.} Nxd5+ {[%emt 0:01:22]} 32. Kf2 {[%emt 0:00:10]} Nxe4+ {[%emt 0:03:54]} 33. Bxe4 {[%emt 0:00:01]} Nxb4 {[%emt 0:00:08]} 34. Bxb7 $11 {[%emt 0:00:06] KB-KN. Black is a pawn up.} Nd3+ {[%emt 0:00:05]} 35. Kf3 {[%emt 0:00:40]} Nc5 {[%emt 0:00:26]} 36. Bc8 {[%emt 0:00:43]} Kf6 {[%emt 0:00:11]} 37. Kg4 {[%emt 0:00:31]} g5 {[%emt 0:02:53]} 38. g3 $1 {[%emt 0:00:31]} hxg3 {[%emt 0:00:10]} 39. Kxg3 {[%emt 0:00:41]} e4 {[%emt 0:01:18]} 40. h4 {[%emt 0:01:10]} gxh4+ {[%emt 0:00:09]} 41. Kf4 {[%emt 0:00:53]} Kg6 {[%emt 0:00:53]} 42. Bf5+ {[%emt 0:00:10]} Kh5 {[%emt 0:00:07]} 43. Bg4+ {[%emt 0:00:02]} Kh6 {[%emt 0:00:07]} 44. Bf5 {[%emt 0:00:04] Weighted Error Value: White=0.14 (very precise) /Black=0.07 (flawless)   Mistake:       	White=2     	Black=1      Inaccurate:     	White=3     	Black=1      OK:         	White=10    	Black=14     Best:        	White=2     	Black=1      Strong:       	White=2     	Black=1} 1/2-1/2

[Event "Budapest One Week IM-B 03-2025"]
[Site "Budapest"]
[Date "2025.03.21"]
[Round "7.5"]
[White "Venkatesh, Narayan"]
[Black "Shah, Vishwa"]
[Result "0-1"]
[Annotator "TA"]
[ECO "D31"]
[WhiteElo "2203"]
[BlackElo "2172"]
[PlyCount "76"]
[EventDate "2025.03.17"]
[EventType "tourn"]
[EventCountry "HUN"]
[SourceTitle "playchess.com"]
[Source "ChessBase"]
[SourceQuality "1"]
[TimeControl "5400+30"]

{[%evp 9,76,21,19,13,21,1,22,29,37,42,44,48,64,55,65,90,82,8,54,51,39,28,33,45,39,26,34,37,41,34,75,74,68,-32,-23,-24,52,-294,-301,-408,-408,-477,-430,-731,-784,-785,-697,-777,-774,-750,-425,-468,-471,-511,-509,-488,-447,-460,-447,-704,-698,-808,-777,-1131,-1106,-1128,-1088,-29988,-29989]} 1. d4 {[%emt 0:02:15]} d5 {[%emt 0:00:09]} 2. c4 {[%emt 0:00:10]} e6 {[%emt 0:00:05]} 3. Nc3 {[%emt 0:00:12]} a6 {[%emt 0:00:05]} 4. cxd5 {[%emt 0:00:18]} exd5 {[%emt 0:00:04]} 5. Bf4 {[%emt 0:00:10]} Nf6 {[%emt 0:00:07]} 6. e3 {[%emt 0:00:06] D31: Queen's Gambit Declined: Semi-Slav without ...Nf6 (+ Marshall Gambit and Noteboom) and Exchange Variation lines without ...Nf6.} c5 {[%emt 0:00:04]} 7. Bd3 {[%emt 0:15:50]} Nc6 {[%emt 0:03:53]} 8. Nge2 {[%emt 0:02:35] The position is equal.} Be7 {[%emt 0:12:10]} 9. dxc5 $146 {[%emt 0:02:16]} (9. O-O O-O 10. b3 b5 11. dxc5 Bxc5 12. Rc1 Ba3 13. Rb1 Be6 14. Bg5 h6 15. Bh4 {1-0 Bashkansky,E (2101)-Levitan,C (2129) Titled Tuesday intern op 02nd May Early blitz 2023 (7)}) 9... Bxc5 {[%emt 0:00:04]} 10. O-O {[%emt 0:00:38]} O-O {[%emt 0:00:10]} 11. Rc1 {[%emt 0:07:32]} Ba7 {[%emt 0:00:58]} 12. Bg5 {[%emt 0:05:09]} h6 {[%emt 0:12:44]} 13. Bh4 {[%emt 0:07:00]} (13. Bxf6 $16 Qxf6 14. Nxd5) 13... Qd6 {[%emt 0:00:48]} (13... d4 $11 {is superior.} 14. exd4 Nxd4) 14. Bb1 $14 {[%emt 0:08:06]} d4 {[%emt 0:05:36]} 15. Bg3 {[%emt 0:02:24]} Qb4 {[%emt 0:05:19]} 16. exd4 {[%emt 0:04:21]} Nxd4 {[%emt 0:00:04]} 17. a3 {[%emt 0:04:53]} Nxe2+ {[%emt 0:01:23]} 18. Qxe2 {[%emt 0:00:27]} Qg4 {[%emt 0:01:30]} 19. Qd3 {[%emt 0:06:58] [#] and Nd5 would now be decisive} g6 {[%emt 0:03:47]} 20. Be5 {[%emt 0:06:38]} Qg5 {[%emt 0:01:03]} 21. Bd6 {[%emt 0:06:01]} ({Better is} 21. Rce1 $14) 21... Re8 $15 {[%emt 0:03:34]} 22. Qf3 {[%emt 0:01:58]} Bb8 {[%emt 0:02:09]} (22... Bg4 $11 23. Qf4 Qxf4 24. Bxf4 Be6) 23. Rcd1 $2 {[%emt 0:01:35][%mdl 8192] Loses the game.} (23. Bg3 $1 $14 {keeps the upper hand.} Bg4 24. Qxb7 Bxg3 25. fxg3) 23... Bg4 $19 {[%emt 0:02:26]} 24. Qxb7 {[%emt 0:12:20]} Bxd1 {[%emt 0:00:30]} 25. f4 {[%emt 0:00:36]} Qg4 {[%emt 0:07:35]} 26. Be5 (26. Qxa8 $142 Bxd6 27. Qc6) 26... Bxe5 {[%emt 0:05:51]} 27. fxe5 {[%emt 0:02:32]} Qd4+ {[%emt 0:00:37]} 28. Kh1 {[%emt 0:00:44]} Qxe5 {[%emt 0:00:05] [#] ...Reb8 would now be deadly.} 29. Nxd1 {[%emt 0:00:28]} Qe2 {[%emt 0:00:00][%cal Re2f1]} 30. Kg1 {[%emt 0:00:13][%cal Ob1a2]} Rad8 {[%emt 0:05:21]} 31. Nc3 {[%emt 0:00:15]} Qe3+ {[%emt 0:00:20]} 32. Kh1 {[%emt 0:00:22]} Rb8 {[%emt 0:04:26]} 33. Qc6 {[%emt 0:01:13]} Re6 {[%emt 0:01:19]} 34. Qc7 {[%emt 0:00:38]} (34. Qc4 $142 Kg7 (34... Rxb2 35. Nd1 $17) 35. Na4) 34... Rxb2 {[%emt 0:04:24][%cal Oe3f2]} 35. Bxg6 {[%emt 0:00:27]} Re7 {[%emt 0:07:25] ( -> ...Qf2)} 36. Qd8+ {[%emt 0:00:35]} Kg7 {[%emt 0:00:14][%cal Oe3f2] ( -> ...Qf2!)} 37. Bd3 {[%emt 0:00:28]} Rd2 {[%emt 0:02:41]} 38. Ne4 {[%emt 0:00:29]} Nxe4 {[%emt 0:01:54] Weighted Error Value: White=0.93/Black=0.19 (very precise)   Loses game:     	White=1     	---        Mistake:       	White=4     	Black=2      Inaccurate:     	White=1     	Black=1      OK:         	White=9     	Black=8      Best:        	White=1     	Black=3} (38... Rxd3 $2 {perishes.} 39. Qxe7 $18) 0-1

[Event "Budapest One Week IM-B 03-2025"]
[Site "Budapest"]
[Date "2025.03.21"]
[Round "8.1"]
[White "Pribelszky, Bence"]
[Black "Shah, Vishwa"]
[Result "1/2-1/2"]
[Annotator "TA"]
[ECO "A00"]
[WhiteElo "2400"]
[BlackElo "2172"]
[PlyCount "81"]
[EventDate "2025.03.17"]
[EventType "tourn"]
[EventCountry "HUN"]
[SourceTitle "playchess.com"]
[Source "ChessBase"]
[SourceQuality "1"]
[TimeControl "5400+30"]

{[%evp 19,81,15,10,9,40,18,17,8,0,-6,0,0,6,11,45,3,7,4,26,0,0,-32,-25,-34,-35,-39,-27,-25,-27,-40,-29,-71,-42,-77,-38,-87,29,-89,22,-72,-76,-85,-92,-102,-79,-77,-58,-56,-58,-65,-61,-69,-50,-94,-89,-97,-92,-125,-100,-91,-29,-45,0,-91]} 1. g3 {[%emt 0:14:20]} c5 {[%emt 0:00:33]} 2. Bg2 {[%emt 0:00:09]} g6 {[%emt 0:02:42]} 3. c4 {[%emt 0:00:27]} Bg7 {[%emt 0:00:32]} 4. Nc3 {[%emt 0:00:11]} e5 {[%emt 0:02:57]} 5. a3 {[%emt 0:00:41]} a5 {[%emt 0:06:30]} 6. Nf3 {[%emt 0:00:24][%cal Bg1f3,Bf3e1,Be1c2][%mdl 32]} Ne7 {[%emt 0:03:44]} 7. O-O {[%emt 0:00:30]} O-O {[%emt 0:00:29]} 8. Ne1 {[%emt 0:00:34]} Nbc6 {[%emt 0:01:23]} 9. Rb1 {[%emt 0:00:41]} d6 {[%emt 0:00:06]} 10. Nc2 {[%emt 0:00:15]} Be6 {[%emt 0:00:18]} 11. Ne3 {[%emt 0:00:09] A37: Symmetrical English vs ...g6: 4 Bg2 Bg7 5 Nf3.} Qd7 {[%emt 0:05:01]} 12. d3 {[%emt 0:06:43]} Bh3 {[%emt 0:04:23]} 13. Ned5 {[%emt 0:00:29] Threatens to win with Nb6.} Bxg2 {[%emt 0:00:59]} 14. Kxg2 {[%emt 0:00:16]} Nxd5 {[%emt 0:03:23]} 15. Nxd5 {[%emt 0:00:09]} Ne7 {[%emt 0:02:16]} 16. Nc3 $146 {[%emt 0:07:07]} (16. Nxe7+ Qxe7 17. b4 cxb4 18. axb4 b5 19. bxa5 bxc4 20. dxc4 Rxa5 21. Be3 Rc8 22. Rb6 {0-1 Arambel,S (2291)-Slipak,S (2445) Mar del Plata Duchamp op 45th 2014 (7)}) 16... d5 {[%emt 0:06:06]} 17. cxd5 {[%emt 0:03:00]} Nxd5 {[%emt 0:00:04]} 18. Qb3 {[%emt 0:00:49]} Ne7 {[%emt 0:08:05][%cal Bd5e7,Be7f5,Bf5d4,Bd4c6,Bc6b4][%mdl 32]} (18... Rfd8 {simplifies} 19. Nxd5 Qxd5+ 20. Qxd5 Rxd5 21. b3 f5) 19. a4 {[%emt 0:06:19]} Rab8 {[%emt 0:02:34]} 20. Be3 {[%emt 0:05:51]} b6 {[%emt 0:01:00]} 21. Qc4 {[%emt 0:09:25]} Kh8 {[%emt 0:02:24]} 22. f3 {[%emt 0:05:11]} Nf5 {[%emt 0:05:05]} 23. Bg1 {[%emt 0:01:18]} Nd4 {[%emt 0:00:34]} 24. e4 {[%emt 0:01:14]} Nc6 {[%emt 0:02:48]} 25. Qd5 {[%emt 0:01:29]} Rfd8 {[%emt 0:06:47]} 26. Rfd1 {[%emt 0:02:24]} Nb4 {[%emt 0:01:06]} 27. Qc4 {[%emt 0:00:59]} (27. Qxd7 $15 Rxd7 28. Ra1) 27... Qe6 {[%emt 0:02:01]} (27... Nxd3 $2 28. b3 $18 (28. Nd5 Nb4 $16)) (27... Bh6 $17) 28. Nb5 {[%emt 0:10:22]} (28. Qxe6 $11 fxe6 29. Nb5 Rxd3 30. Rxd3 Nxd3 31. b3) 28... Kg8 {[%emt 0:10:53]} ({Better is} 28... Qe7 $17) 29. Be3 {[%emt 0:03:22]} (29. Qxe6 $11 fxe6 30. Kf1 Nxd3 (30... Rxd3 31. Rxd3 Nxd3 32. Ke2 $14) 31. Ke2) 29... Qe7 $17 {[%emt 0:05:47]} 30. Qc3 {[%emt 0:04:07]} Rd7 {[%emt 0:03:07]} 31. Rd2 {[%emt 0:00:11][%csl Od3] Black attacks a weakness} Rbd8 {[%emt 0:00:23][%cal Of7f5]} 32. Rbd1 {[%emt 0:00:14]} Bf6 {[%emt 0:00:47]} 33. Na3 {[%emt 0:01:55]} h5 {[%emt 0:01:16]} 34. Nc4 {[%emt 0:00:14]} Qe6 {[%emt 0:00:05]} 35. h3 {[%emt 0:03:36]} Kg7 {[%emt 0:03:07]} 36. h4 {[%emt 0:03:57]} Kh7 {[%emt 0:01:25]} 37. b3 {[%emt 0:01:53]} Bg7 {[%emt 0:00:35]} 38. Qc1 {[%emt 0:03:05]} f6 {[%emt 0:05:48]} (38... Rxd3 39. Rxd3 Rxd3 (39... Nxd3 $2 40. Qb1 $18) 40. Rxd3 Nxd3 41. Qd1 $11) (38... Nxd3 39. Qb1 Nb4 40. Rxd7 Rxd7 41. Rxd7 Qxd7 42. Nxb6 $18) 39. Kh2 {[%emt 0:01:45] [#]} Kg8 {[%emt 0:00:56]} (39... Rxd3 40. Rxd3 Rxd3 (40... Nxd3 $2 {too greedy.} 41. Qb1 $18) 41. Rxd3 Nxd3 42. Qd1 $16) (39... Nxd3 40. Qb1 Nb4 (40... Nf2 $2 41. Bxf2 Rxd2 42. Rxd2 $18) 41. Rxd7 Rxd7 42. Rxd7 Qxd7 43. Nxb6 $11) (39... f5 $1 $17 {[%cal Rf5f4] Threatens to win with ...f4.} 40. Bg5 Bf6 (40... Nxd3 $2 41. Qb1 $18) 41. exf5 Qxf5 (41... gxf5 $2 42. Kg1 $17)) 40. Qc3 {[%emt 0:00:56]} Kh7 {[%emt 0:00:04]} (40... Qc6 $15) 41. Qc1 $1 {[%emt 0:03:17] Weighted Error Value: White=0.20 (precise) /Black=0.22 (precise)   Mistake:       	White=3     	Black=4      Inaccurate:     	White=7     	Black=4      OK:         	White=6     	Black=12     Best:        	White=1     	---        Strong:       	White=1     	---} 1/2-1/2

[Event "Budapest One Week IM-B 03-2025"]
[Site "Budapest"]
[Date "2025.03.21"]
[Round "8.2"]
[White "Ongut, Tamas Gunes"]
[Black "Venkatesh, Narayan"]
[Result "1-0"]
[Annotator "TA"]
[ECO "D02"]
[WhiteElo "2290"]
[BlackElo "2203"]
[PlyCount "89"]
[EventDate "2025.03.17"]
[EventType "tourn"]
[EventCountry "HUN"]
[SourceTitle "playchess.com"]
[Source "ChessBase"]
[SourceQuality "1"]
[TimeControl "5400+30"]

{[%evp 9,88,0,18,5,52,51,60,54,56,-5,71,77,75,52,78,42,27,-7,2,-18,-14,-14,-17,-25,44,24,33,37,68,46,38,36,51,16,12,0,41,-81,255,222,339,315,516,480,494,491,508,430,759,736,1023,995,1720,1668,1707,1566,1465,1337,29985,1286,2351,1631,1742,1704,1594,1536,1343,989,1044,799,29979,29980,29972,29968,5633,5626,29997,29998,29998,29999,29999]} 1. Nf3 {[%emt 0:16:22]} d5 {[%emt 0:00:30]} 2. d4 {[%emt 0:00:37]} Nf6 {[%emt 0:00:30]} 3. g3 {[%emt 0:00:44]} Bf5 {[%emt 0:01:04]} 4. c4 {[%emt 0:00:17]} e6 {[%emt 0:06:24]} 5. Nc3 {[%emt 0:00:19]} c6 {[%emt 0:01:25]} 6. Nh4 {[%emt 0:00:24] D02: 1 d4 d5 2 Nf3 sidelines, including 2...Nf6 3 g3 and 2...Nf6 3 Bf4.} Be4 {[%emt 0:04:44]} (6... dxc4 $11 7. Nxf5 exf5) 7. f3 $14 {[%emt 0:00:08]} Bg6 {[%emt 0:00:09]} 8. Qb3 {[%emt 0:01:25] White is slightly better.} Qb6 {[%emt 0:03:20]} 9. c5 {[%emt 0:00:06]} (9. Nxg6 $14 hxg6 10. c5) 9... Qc7 {[%emt 0:03:25]} (9... Qxb3 $11 {remains equal.} 10. axb3 Bc2) 10. Bf4 $16 {[%emt 0:00:53]} Qc8 {[%emt 0:00:18]} 11. Bg2 {[%emt 0:02:50] White has more active pieces.} Nbd7 {[%emt 0:02:03][%cal Bb8d7,Bd7c5,Bc5e6][%mdl 32]} 12. Nxg6 {[%emt 0:03:00]} hxg6 {[%emt 0:00:10]} 13. e4 {[%emt 0:03:16]} dxe4 {[%emt 0:13:12]} 14. fxe4 {[%emt 0:01:24] [#]} e5 $1 {[%emt 0:11:09]} 15. dxe5 {[%emt 0:00:07]} (15. Bxe5 Nxe5 16. dxe5 Ng4 $17) 15... Nxc5 {[%emt 0:00:38]} 16. Qc2 {[%emt 0:00:06]} Nfd7 {[%emt 0:01:45]} ({Better is} 16... Ng4 $11) 17. O-O-O $36 {[%emt 0:00:15][%mdl 2048] Black is under pressure.} Be7 $146 {[%emt 0:01:39]} (17... Ne6 18. h4 Qc7 19. Bh3 O-O-O 20. Kb1 Be7 21. Qe2 Ndf8 22. Nd5 cxd5 23. exd5 Kb8 24. dxe6 {1-0 Truskavetsky,A (2348)-Ivlev,A (2315) Sochi Pearl Rapid op 2023 (5)}) 18. h4 {[%emt 0:00:26]} Ne6 {[%emt 0:05:24]} 19. Bh3 {[%emt 0:00:12][%cal Of4g5]} Ndf8 {[%emt 0:04:57]} 20. Kb1 {[%emt 0:00:10]} Qc7 {[%emt 0:01:19]} 21. Rc1 {[%emt 0:10:06]} Qa5 {[%emt 0:04:46] Prevents Nd5} 22. Rhf1 {[%emt 0:05:03]} g5 $1 {[%emt 0:06:42]} 23. Bd2 {[%emt 0:03:00]} (23. Be3 $14 {keeps the upper hand.}) 23... gxh4 $2 {[%emt 0:08:09][%csl Oe4,Oe5,Og3][%mdl 8192] White has weak pawns Black cannot hold the game after this.} (23... Qxe5 $17 {stays on course.} 24. Ne2 (24. Qb3 Rd8 $17) 24... gxh4) 24. Nd5 $1 $18 {[%emt 0:02:14]} Qd8 {[%emt 0:00:44] [#]} (24... Qb5 {keeps fighting.}) 25. Qb3 $1 {[%emt 0:02:56][%cal Ob3b7]} Rb8 {[%emt 0:07:53] [#]} (25... cxd5 26. exd5 Nd4 27. Qa4+ (27. Qxb7 Rb8 $17) 27... Nd7 28. e6 $18 (28. Qxd4 hxg3 29. Rh1 O-O $18)) (25... hxg3 26. Bxe6 Nxe6) 26. Qf3 $1 {[%emt 0:00:30]} f6 {[%emt 0:04:17]} 27. exf6 {[%emt 0:03:59]} gxf6 {[%emt 0:00:16]} 28. Bg4 {[%emt 0:04:21]} cxd5 {[%emt 0:02:33]} (28... hxg3 $142 29. Nxe7 (29. Nxf6+ Bxf6 30. Qxg3 Qxd2 $14) 29... Qxe7) 29. Bh5+ {[%emt 0:00:08] This pair of bishops is nice.} Kd7 {[%emt 0:02:37]} 30. exd5 {[%emt 0:00:40]} Qb6 {[%emt 0:02:08]} 31. dxe6+ {[%emt 0:01:31] Black is weak on the light squares} Nxe6 {[%emt 0:00:17]} 32. Rfd1 {[%emt 0:00:35]} Bd6 {[%emt 0:00:45]} 33. Be3 {[%emt 0:00:39]} Qb5 {[%emt 0:00:40]} 34. Rd5 {[%emt 0:00:29]} (34. Qxf6 $142 Qxh5 35. Bf4 Qh7+ 36. Ka1 Qe7 37. Rxd6+ Qxd6 38. Qf7+ (38. Bxd6 Rbe8 $18) 38... Qe7 39. Rd1+ Kc6 40. Qxe7) 34... Qa6 {[%emt 0:00:58]} 35. Rcd1 {[%emt 0:01:24]} Ke7 {[%emt 0:00:35]} 36. Rxd6 {[%emt 0:02:00]} Qxd6 {[%emt 0:00:09]} 37. Rxd6 {[%emt 0:00:09]} (37. gxh4 Qc6 $16) 37... Kxd6 {[%emt 0:00:01]} 38. gxh4 {[%emt 0:00:41][%cal Of3f6] And now Qxf6! would win.} Ke7 {[%emt 0:00:08][%cal Bd6e7,Be7f7,Bf7g6,Bg6h7,Bh7h6,Bh6h5][%mdl 32]} 39. Bg4 {[%emt 0:00:59] White wants to mate with Qe4.} Ng7 {[%emt 0:01:19]} 40. Bc5+ {[%emt 0:00:25]} Kf7 {[%emt 0:00:07]} 41. Qd5+ {[%emt 0:00:09]} Kg6 {[%emt 0:00:22]} 42. h5+ {[%emt 0:00:20]} Kh7 {[%emt 0:00:04]} 43. Bf5+ {[%emt 0:00:16] White mates.} Kh6 {[%emt 0:00:20]} 44. Be3+ {[%emt 0:00:26]} Kxh5 {[%emt 0:00:04]} 45. Qh1# {[%emt 0:00:06] Weighted Error Value: White=0.69/Black=1.19  Loses game:     	---       	Black=1      Mistake:       	White=2     	Black=6      Inaccurate:     	White=3     	Black=2      OK:         	White=8     	Black=8      Best:        	White=3     	Black=2      Strong:       	White=2     	Black=1      Brilliant:      	---       	Black=1} 1-0